bitfinex-derivatives/quotes_ETHF0:USTF0_20250810
["timestamp","ask_amount","ask_price","bid_price","bid_amount"]
[1754837034987,1.0148,4221.7,4221.6,1.3016]
[1754837035188,2.02761033,4221.7,4221.6,0.4406]
[1754837035391,2.30231033,4221.7,4221.6,0.1861]
[1754837035894,2.30231033,4221.7,4221.6,0.4556]
[1754837036295,2.30231033,4221.7,4221.6,1.1309]
[1754837037586,2.30231033,4221.7,4221.6,1.5647]
[1754837040197,2.77599033,4221.7,4221.6,1.5647]
[1754837041092,2.77599033,4221.7,4221.6,0.8808]
[1754837041293,2.01968,4221.7,4221.6,0.8808]
[1754837041493,2.77599033,4221.7,4221.6,0.8808]
[1754837041898,2.30231033,4221.7,4221.6,1.3016]
[1754837042400,2.30231033,4221.7,4221.6,1.5647]
[1754837043491,22.72631033,4222.3,4221.7,0.4208]
[1754837043698,0.6271,4222.1,4222.0,1.5647]
[1754837043999,1.2895,4222.1,4222.0,1.5647]
[1754837044391,2.04581033,4222.3,4222.2,0.6113]
[1754837044591,2.30231033,4222.3,4222.2,1.5647]
[1754837045497,1.546,4222.3,4222.2,1.5647]
[1754837045697,0.1785,4222.3,4222.2,1.5647]
[1754837046003,2.33341033,4222.3,4222.2,1.5647]
[1754837048103,1.1726,4222.1,4222.0,0.9176]
[1754837048402,1.5694,4222.1,4222.0,1.3252]
[1754837048595,1.5694,4222.1,4222.0,1.6025]
[1754837051698,0.75631033,4222.8,4222.0,0.4641]
[1754837051898,1.76369,4222.6,4222.5,1.6025]
[1754837052100,0.6153,4222.7,4222.6,1.6025]
[1754837052302,1.2901,4222.7,4222.6,1.6025]
[1754837052502,0.6748,4223.3,4222.7,0.9508]
[1754837052707,2.0429,4223.3,4223.2,0.7414]
[1754837052908,1.5694,4222.8,4222.7,1.6025]
[1754837053106,1.1,4223.5,4222.7,1.3366]
[1754837053307,1.1,4223.5,4223.3,0.4656]
[1754837053308,0.8933,4223.4,4223.3,0.4656]
[1754837053509,1.5694,4223.4,4223.3,1.6025]
[1754837053703,1.1,4223.5,4223.3,1.3252]
[1754837053902,1.4554,4223.5,4223.4,1.6025]
[1754837054109,1.7334,4223.5,4223.4,1.6025]
[1754837054310,1.1,4223.5,4223.4,1.6025]
[1754837054905,2.2726,4223.5,4223.4,1.6025]
[1754837055099,2.6694,4223.5,4223.4,1.6025]
[1754837055310,1.9933,4223.5,4223.4,1.6025]
[1754837055812,3.89920033,4223.5,4222.9,0.2773]
[1754837056111,1.5694,4223.4,4223.3,1.6025]
[1754837056506,1.1,4223.5,4223.4,1.6025]
[1754837057710,0.005,4223.7,4223.6,1.4683]
[1754837058010,0.2843,4223.7,4223.6,1.4683]
[1754837058213,2.93966033,4224.9,4223.6,1.4683]
[1754837058214,1.0,4224.9,4223.8,0.2268]
[1754837058509,1.8946,4224.9,4224.8,1.2365]
[1754837058705,1.8946,4224.9,4224.4,0.47338]
[1754837058706,0.6153,4224.7,4224.6,0.1772]
[1754837058908,1.5694,4224.7,4224.6,0.1861]
[1754837059303,1.5694,4224.2,4224.1,0.4641]
[1754837060000,1.5694,4224.2,4224.1,0.8717]
[1754837060212,1.3095,4223.9,4223.8,1.2362]
[1754837060413,1.5694,4223.9,4223.8,1.2362]
[1754837060708,0.6748,4223.3,4222.8,0.4076]
[1754837060908,1.18346,4224.5,4223.5,0.6517]
[1754837060909,0.6347,4223.6,4223.5,0.6517]
[1754837061099,1.1726,4223.6,4223.5,1.4627]
[1754837061305,0.9541,4223.6,4222.7,0.47357]
[1754837061509,1.08879,4223.4,4223.3,0.6517]
[1754837061813,1.08879,4223.4,4223.3,1.2362]
[1754837062014,2.04289,4223.4,4223.3,1.2362]
[1754837062308,1.76366,4222.8,4222.7,0.1876]
[1754837062515,1.5694,4222.3,4222.2,1.0593]
[1754837062718,1.5694,4222.3,4222.2,1.2362]
[1754837063013,0.278,4222.6,4222.2,1.4627]
[1754837063206,0.75287,4222.8,4222.7,1.4627]
[1754837063406,0.9541,4223.9,4222.7,1.35176]
[1754837063607,0.75631033,4224.2,4222.2,0.75631033]
[1754837063608,2.04292,4223.2,4223.1,1.2362]
[1754837064019,2.04292,4223.2,4223.1,0.6517]
[1754837064312,2.04292,4223.2,4223.1,1.2362]
[1754837064908,2.04292,4223.2,4223.1,1.0593]
[1754837065315,1.5694,4223.2,4223.1,1.0593]
[1754837065909,0.3554,4222.6,4222.5,0.5506]
[1754837066110,0.278,4222.4,4221.5,0.47371]
[1754837066311,0.2793,4222.8,4221.7,0.2265]
[1754837066610,0.9541,4222.4,4221.9,0.1769]
[1754837066814,1.5694,4222.4,4222.3,0.8717]
[1754837068420,1.5694,4222.4,4222.3,1.2362]
[1754837068611,1.5694,4222.4,4222.3,0.4641]
[1754837068817,1.5694,4222.4,4222.3,0.8717]
[1754837069610,2.04305,4222.0,4221.9,0.8286]
[1754837069815,2.04305,4222.0,4221.9,0.6517]
[1754837070115,2.0431,4221.6,4221.5,1.0593]
[1754837070315,1.5694,4221.6,4221.5,1.0593]
[1754837070522,1.64623,4222.2,4222.1,1.0593]
[1754837070717,2.04303,4222.2,4222.1,1.2362]
[1754837071117,1.1726,4222.2,4222.1,1.4627]
[1754837071321,0.5573,4222.2,4222.1,1.4627]
[1754837071518,1.1726,4222.2,4222.1,1.4627]
[1754837071722,1.5694,4222.2,4222.1,1.4627]
[1754837071920,1.1726,4222.2,4222.1,1.4627]
[1754837073015,1.5694,4222.2,4222.1,1.2362]
[1754837073818,1.10833,4222.2,4222.1,1.4627]
[1754837074014,1.1726,4222.2,4222.1,1.4627]
[1754837074220,0.4639,4222.2,4222.1,1.4627]
[1754837075312,0.4639,4222.2,4222.1,1.93634]
[1754837075519,0.2793,4222.2,4222.1,1.93634]
[1754837075720,1.1444,4222.5,4222.4,1.2304]
[1754837075926,1.5419,4222.5,4222.4,1.2304]
[1754837077425,0.5213,4222.5,4222.4,1.4575]
[1754837077820,0.6925,4222.5,4222.4,1.4575]
[1754837078011,0.8735,4222.5,4222.4,1.4575]
[1754837079022,0.2645,4222.8,4222.7,1.2304]
[1754837079225,0.2645,4222.8,4222.7,1.93107]
[1754837079421,0.2568,4223.0,4222.7,1.93107]
[1754837079627,0.6925,4223.0,4222.9,1.93105]
[1754837080326,1.5335,4223.0,4222.9,1.2304]
[1754837080518,0.47354,4223.1,4222.0,1.18411]
[1754837080519,0.3522,4222.1,4222.0,1.0529]
[1754837080716,1.5335,4222.1,4222.0,1.70405]
[1754837080917,0.5213,4222.6,4222.5,0.8191]
[1754837081120,1.60958,4222.6,4222.5,1.93109]
[1754837081429,1.5335,4222.6,4222.5,1.70399]
[1754837081814,0.6147,4222.4,4222.3,1.11521]
[1754837082026,1.5335,4222.4,4222.3,1.52651]
[1754837082426,1.5335,4222.4,4222.3,1.70401]
[1754837082820,1.5335,4222.4,4222.3,1.52301]
[1754837083321,1.5335,4222.4,4222.3,0.8719]
[1754837083724,1.5335,4222.4,4222.3,0.4606]
[1754837084225,1.5335,4222.4,4222.3,0.93422]
[1754837084422,1.5335,4222.4,4222.3,0.4606]
[1754837085617,1.18394,4222.7,4222.0,0.4113]
[1754837085817,1.5335,4222.0,4221.9,0.47366]
[1754837086021,1.5335,4222.0,4221.9,1.34556]
[1754837086226,1.5335,4222.0,4221.9,1.2304]
[1754837089027,0.2568,4222.4,4221.7,1.18421]
[1754837089336,1.5335,4222.4,4222.3,1.93112]
[1754837089528,1.5335,4222.4,4222.3,1.70402]
[1754837089933,1.5335,4222.4,4222.3,1.2304]
[1754837090528,1.5335,4222.4,4222.3,1.22607315]
[1754837090729,1.5335,4222.4,4222.3,1.04857315]
[1754837090929,1.5335,4222.4,4222.3,0.63727315]
[1754837091228,0.8715,4222.2,4222.1,1.34554]
[1754837091535,1.5335,4222.2,4222.1,1.34554]
[1754837092137,1.5335,4222.2,4222.1,1.52654]
[1754837092335,1.5335,4222.2,4222.1,1.70404]
[1754837092638,1.5335,4222.2,4222.1,1.52654]
[1754837093536,1.5335,4222.2,4222.1,0.4606]
[1754837093734,1.18388,4223.0,4221.7,2.72076495]
[1754837093735,1.5335,4221.8,4221.7,2.72076495]
[1754837094433,1.5335,4221.8,4221.7,2.89826495]
[1754837094937,1.5335,4221.8,4221.7,3.37194495]
[1754837096236,0.6147,4221.5,4221.4,1.66786495]
[1754837096536,0.9188,4222.5,4221.9,0.88496]
[1754837096833,0.1712,4222.4,4222.3,0.6416]
[1754837097032,0.1712,4222.4,4222.3,1.4532]
[1754837097033,0.6925,4222.4,4222.3,1.4532]
[1754837097633,0.8735,4222.4,4222.3,1.4532]
[1754837098440,0.73808,4222.7,4222.6,1.2304]
[1754837098734,0.99488,4222.7,4222.6,1.4532]
[1754837098931,1.5335,4222.7,4222.6,1.2304]
[1754837100137,1.5335,4222.7,4222.6,0.8719]
[1754837100336,0.6147,4222.4,4222.3,0.8719]
[1754837100644,1.5335,4222.4,4222.3,0.8719]
[1754837101541,0.9188,4222.3,4221.8,1.66786495]
[1754837101743,0.6147,4221.8,4221.6,0.47369]
[1754837101939,1.5335,4221.7,4221.6,0.93429]
[1754837102136,1.5335,4221.7,4221.6,1.52659]
[1754837102332,1.5335,4221.7,4221.6,0.47369]
[1754837102645,1.5335,4221.7,4221.6,1.70409]
[1754837103240,1.5335,4221.7,4221.4,1.66786495]
[1754837103241,0.54288135,4222.8,4221.5,1.18427]
[1754837103441,0.47345,4223.8,4223.6,1.0947]
[1754837103642,0.6925,4223.8,4223.7,0.4606]
[1754837103842,1.136,4223.8,4223.7,0.4606]
[1754837104436,1.136,4223.8,4223.7,0.8719]
[1754837104739,1.136,4224.8,4224.7,0.4606]
[1754837104944,0.955,4224.8,4224.7,0.8719]
[1754837105143,0.47317,4226.3,4224.7,27.899]
[1754837105345,0.2679,4226.0,4224.9,1.18332]
[1754837105638,0.9256,4225.8,4225.5,0.47326]
[1754837105843,0.536,4225.6,4225.5,0.47326]
[1754837106036,0.7179,4225.6,4225.5,0.47326]
[1754837106235,0.47308,4227.1,4226.2,0.47317]
[1754837106447,0.2681,4226.9,4226.2,0.47317]
[1754837106638,0.47311,4226.8,4225.0,1.18329]
[1754837106839,1.1,4227.5,4225.7,0.47323]
[1754837106840,0.74106,4226.5,4225.7,0.47323]
[1754837107041,0.9256,4226.1,4225.6,0.47324]
[1754837107236,0.47317,4226.3,4225.1,21.893]
[1754837107540,0.2679,4225.8,4225.1,21.893]
[1754837107741,0.01876932,4225.5,4224.7,0.47335]
[1754837108050,0.2679,4225.4,4224.8,21.892]
[1754837108242,0.9256,4225.4,4224.8,3.11872749]
[1754837108446,0.01876932,4225.5,4225.2,0.47329]
[1754837108746,0.28666932,4225.5,4225.2,0.47329]
[1754837108949,0.02813738,4225.4,4224.9,22.077]
[1754837109243,0.29603738,4225.4,4224.9,0.47333]
[1754837109643,0.29603738,4225.4,4224.8,22.54733]
[1754837109846,0.2679,4225.4,4224.8,22.54733]
[1754837110047,0.03262681,4225.1,4224.8,22.54733]
[1754837110445,0.03262681,4225.1,4224.8,28.54733]
[1754837111044,0.03262681,4225.0,4224.9,22.087]
[1754837111245,0.03262681,4225.0,4224.9,22.085]
[1754837111445,0.03262681,4225.0,4224.9,28.085]
[1754837112744,0.03262681,4225.0,4224.9,22.082]
[1754837112944,0.2679,4224.9,4224.8,0.47333]
[1754837113149,0.56862681,4224.9,4224.8,22.54833]
[1754837113350,0.30052681,4224.9,4224.8,22.54833]
[1754837114644,1.57292681,4224.9,4224.8,0.47333]
[1754837115853,0.536,4224.7,4223.9,23.2556]
[1754837116040,0.536,4224.5,4224.4,0.47338]
[1754837116240,0.95822681,4224.5,4224.4,0.47338]
[1754837116746,0.95822681,4224.5,4223.8,0.23355963]
[1754837116952,0.9256,4224.4,4224.1,0.47341]
[1754837117247,1.18315,4225.6,4223.5,1.3749]
[1754837117248,0.03262681,4224.3,4223.8,1.18363]
[1754837117444,0.47343,4224.0,4223.5,0.66468]
[1754837117646,0.9256,4223.9,4223.6,0.47347]
[1754837117847,0.47345,4223.8,4223.6,0.23849287]
[1754837118044,0.47355,4223.0,4222.7,0.3832]
[1754837118350,0.2681,4222.8,4222.7,0.3832]
[1754837118546,0.9256,4222.8,4222.7,0.3832]
[1754837119354,0.95822681,4222.8,4222.7,0.6547]
[1754837119744,0.95822681,4222.8,4222.7,0.3832]
[1754837120055,0.95822681,4222.8,4222.7,0.6547]
[1754837120252,0.95822681,4222.8,4222.7,0.3832]
[1754837120462,0.9256,4222.7,4222.5,0.3832]
[1754837120645,0.9256,4222.6,4222.5,0.3832]
[1754837120954,0.9256,4222.2,4222.1,0.23471773]
[1754837121142,0.9256,4222.7,4222.1,0.47363]
[1754837121345,0.03262681,4222.4,4222.1,0.47363]
[1754837121547,0.03262681,4222.4,4222.3,0.9217]
[1754837121949,0.03262681,4222.4,4222.2,22.065]
[1754837121950,0.9256,4222.3,4222.2,22.065]
[1754837122556,0.9256,4222.2,4222.1,0.23336243]
[1754837122754,0.9256,4222.2,4221.9,22.53866]
[1754837122945,0.03262681,4222.3,4221.9,22.53866]
[1754837123147,0.03262681,4222.3,4222.0,0.47365]
[1754837123546,0.03262681,4222.2,4221.8,0.47367]
[1754837123745,0.6577,4221.9,4221.8,0.47367]
[1754837123962,0.9256,4221.9,4221.8,0.47367]
[1754837124351,0.9256,4221.9,4221.8,0.71044104]
[1754837124547,0.95822681,4221.9,4221.8,0.71044104]
[1754837126066,0.95822681,4221.9,4221.8,0.23677104]
[1754837126354,0.9256,4221.8,4221.7,0.47368]
[1754837126555,0.47364,4222.1,4221.6,0.47369]
[1754837126754,0.9256,4222.8,4221.8,0.44104319]
[1754837126956,0.47363,4222.2,4221.8,0.44104319]
[1754837127155,0.9256,4222.1,4221.8,0.44104319]
[1754837127357,0.47363,4222.2,4221.8,0.44104319]
[1754837127358,0.9256,4222.0,4221.8,0.44104319]
[1754837127552,0.536,4221.9,4221.8,0.44104319]
[1754837127758,0.9256,4221.9,4221.8,0.44104319]
[1754837128658,0.6577,4222.3,4222.2,0.47363]
[1754837128956,0.4735,4223.4,4222.3,1.18404]
[1754837129161,0.6577,4223.3,4223.0,0.47353]
[1754837129361,0.9256,4223.6,4223.2,0.47351]
[1754837129556,0.536,4223.5,4223.2,0.47351]
[1754837129759,0.9256,4223.4,4223.2,0.47351]
[1754837129958,0.9256,4223.3,4223.2,0.47351]
[1754837131267,0.9256,4223.3,4223.2,1.12821]
[1754837132562,0.2679,4223.3,4223.2,1.12821]
[1754837132768,0.9256,4223.8,4223.7,0.85666]
[1754837133461,0.6575,4224.0,4223.5,0.47348]
[1754837133668,0.3896,4224.1,4223.5,0.47348]
[1754837133868,0.536,4224.0,4223.5,0.47348]
[1754837134055,0.3896,4224.1,4223.5,0.47348]
[1754837134262,0.536,4224.0,4223.5,0.47348]
[1754837134457,0.6147,4223.6,4223.4,0.47349]
[1754837134662,1.5403,4222.9,4222.8,1.46326]
[1754837134961,1.5403,4222.9,4222.8,1.73476]
[1754837135162,1.2722,4222.9,4222.8,1.73476]
[1754837135666,1.5459,4222.9,4222.8,1.73476]
[1754837136372,0.2679,4222.9,4222.8,1.73476]
[1754837136667,0.2679,4222.9,4222.8,2.01416]
[1754837137070,1.5691,4223.2,4223.1,1.73353]
[1754837138061,1.5691,4223.2,4223.1,0.47353]
[1754837142962,0.8856,4223.6,4223.5,0.6083]
[1754837143160,1.0351,4224.0,4223.9,0.47345]
[1754837143357,1.0351,4224.0,4223.9,1.73345]
[1754837143358,1.5691,4224.0,4223.9,1.73345]
[1754837143857,1.5691,4224.0,4223.9,0.47345]
[1754837144259,1.5691,4223.9,4223.8,0.47345]
[1754837144461,1.5691,4223.8,4223.7,0.47347]
[1754837145364,1.5691,4223.7,4223.6,0.47347]
[1754837146163,0.6253,4223.0,4222.9,0.64306]
[1754837146369,1.5691,4223.0,4222.9,1.73356]
[1754837146566,1.5691,4223.0,4222.9,0.82376]
[1754837146871,1.5691,4223.0,4222.9,0.64306]
[1754837147374,1.5691,4223.0,4222.9,1.02646]
[1754837147561,1.5691,4223.0,4222.9,0.47356]
[1754837148173,0.4736,4222.5,4222.2,0.47363]
[1754837148394,1.18386,4223.1,4221.5,1.70067098]
[1754837148395,1.5691,4221.6,4221.5,1.70067098]
[1754837148564,1.1593,4221.6,4221.5,1.73371]
[1754837148768,1.1593,4221.6,4221.5,2.01311]
[1754837149072,1.1593,4221.6,4221.5,1.73371]
[1754837149278,0.47362,4222.4,4221.2,0.6628]
[1754837149471,0.9438,4222.3,4221.4,0.2794]
[1754837149672,0.2603,4222.2,4221.5,0.6517]
[1754837149871,1.41744,4222.2,4221.5,0.6517]
[1754837150178,1.41744,4222.2,4221.8,0.47367]
[1754837150179,1.5691,4221.9,4221.8,0.47367]
[1754837151668,1.3852,4221.8,4221.7,0.47369]
[1754837151863,1.5691,4221.8,4221.7,0.47369]
[1754837152874,1.5691,4221.7,4221.6,0.4737]
[1754837156271,1.09899,4221.7,4221.4,0.47372]
[1754837156576,1.5691,4221.5,4221.4,0.47372]
[1754837156772,0.2603,4221.5,4221.4,0.47372]
[1754837156973,0.2603,4221.5,4221.4,2.01312]
[1754837157175,0.4423,4221.5,4221.4,2.01312]
[1754837157375,1.1593,4221.5,4221.4,2.01312]
[1754837157775,1.5691,4221.5,4221.4,1.46542]
[1754837158172,0.9438,4221.6,4221.5,1.73372]
[1754837158375,1.5691,4221.6,4221.5,1.46542]
[1754837158670,1.5691,4221.6,4221.5,0.3502]
[1754837158875,1.5691,4221.3,4221.2,0.90134]
[1754837159074,1.5691,4221.3,4221.2,0.64325]
[1754837159381,1.5691,4221.3,4220.4,1.18461]
[1754837159673,1.5691,4221.1,4221.0,1.02667]
[1754837159873,1.5691,4221.1,4221.0,0.64327]
[1754837160077,1.5691,4221.1,4221.0,0.47377]
[1754837161172,0.4414,4220.8,4220.7,0.47381]
[1754837161374,1.5691,4220.3,4220.2,1.08216]
[1754837161673,1.5691,4220.3,4220.1,0.47387]
[1754837161878,1.5691,4220.2,4220.1,0.6673629]
[1754837162383,0.6253,4220.2,4220.0,0.47388]
[1754837162580,1.5691,4220.1,4220.0,0.47388]
[1754837163073,1.5691,4220.0,4219.9,0.47389]
[1754837163469,0.47383,4220.5,4219.8,1.18476]
[1754837163676,0.65583,4220.5,4220.4,1.5394]
[1754837163876,2.04293,4220.5,4220.4,1.26]
[1754837164180,1.5691,4220.1,4220.0,0.9917]
[1754837164482,1.5691,4219.5,4219.4,1.0045119]
[1754837164776,0.5197,4219.4,4219.3,0.47396]
[1754837165080,1.5691,4219.8,4219.7,1.26]
[1754837165280,1.1593,4219.8,4219.7,1.26]
[1754837165476,1.5636,4219.8,4219.7,1.26]
[1754837165977,0.6408,4219.6,4219.5,1.72363]
[1754837166172,1.6035,4219.6,4219.5,0.47393]
[1754837166378,1.6035,4219.6,4219.5,1.72363]
[1754837166680,1.1992,4219.6,4219.5,1.98733]
[1754837167376,0.6408,4219.4,4219.3,0.85745]
[1754837167570,1.6035,4219.4,4219.3,0.85745]
[1754837167774,1.6035,4219.4,4219.3,1.46675]
[1754837167970,0.9627,4219.3,4219.2,0.47397]
[1754837168173,1.6035,4219.2,4218.2,0.18650543]
[1754837168481,1.46554,4218.2,4217.7,0.2569]
[1754837168685,2.44116816,4218.7,4217.7,0.8662]
[1754837168686,0.75443,4217.8,4217.7,0.8662]
[1754837168884,0.93843,4217.8,4217.7,0.8662]
[1754837169185,1.39393,4217.8,4217.7,1.2772]
[1754837169582,0.2803,4217.8,4217.7,1.5409]
[1754837169976,0.7424,4217.8,4217.7,1.2772]
[1754837170280,1.1992,4217.8,4217.7,1.2772]
[1754837170478,0.2803,4218.7,4217.9,0.179]
[1754837170683,2.07753,4218.7,4218.6,1.2772]
[1754837170876,1.67323,4218.7,4218.6,0.8662]
[1754837171077,0.47401,4218.9,4217.5,1.1854]
[1754837171385,0.47398,4219.2,4218.9,0.9316]
[1754837171677,0.2803,4219.5,4218.2,1.18521]
[1754837171878,0.2803,4219.5,4218.0,22.022]
[1754837172078,1.18488,4219.4,4218.3,0.47407]
[1754837172273,0.47401,4218.9,4218.7,0.9316]
[1754837172479,0.47401,4218.9,4218.8,0.9316]
[1754837172673,0.4043,4218.9,4218.5,0.411]
[1754837172874,0.47405,4218.5,4218.1,0.47409]
[1754837173077,0.75215,4218.5,4218.1,0.73779]
[1754837173276,0.75215,4218.5,4217.6,1.18537]
[1754837173277,0.47412,4217.9,4217.8,0.2569]
[1754837173477,0.75222,4217.9,4217.8,0.2569]
[1754837173783,0.47408,4218.3,4218.1,0.5206]
[1754837174085,0.47408,4218.3,4218.2,0.9316]
[1754837174579,1.03248,4218.3,4218.2,0.32801114]
[1754837174775,1.43678,4218.3,4218.2,0.32801114]
[1754837175182,0.47408,4218.3,4218.2,0.32801114]
[1754837175386,1.03248,4218.3,4218.2,0.99591114]
[1754837175883,1.43678,4218.3,4218.2,0.32815324]
[1754837176284,1.43678,4218.3,4218.2,0.04665324]
[1754837176285,7.43678,4218.3,4218.2,0.04665324]
[1754837176482,1.15656,4217.5,4217.4,1.01957344]
[1754837176784,0.9627,4217.5,4217.4,1.01957344]
[1754837177179,0.2803,4217.5,4217.4,1.68747344]
[1754837180587,1.18516,4218.5,4217.7,0.2569]
[1754837180588,0.5584,4218.3,4217.7,0.2569]
[1754837180783,0.6824,4218.2,4217.6,0.47415]
[1754837180981,0.75439,4218.1,4218.0,0.6679]
[1754837181191,0.47416,4217.6,4217.4,1.01957344]
[1754837181393,0.6824,4217.5,4217.4,1.01957344]
[1754837181780,0.9627,4217.5,4217.4,1.01957344]
[1754837182382,1.43686,4217.5,4217.4,1.01957344]
[1754837182882,1.43686,4217.5,4217.4,0.31587344]
[1754837183075,1.43686,4217.5,4216.3,0.5206]
[1754837183076,0.7034,4216.4,4216.3,0.5206]
[1754837183282,0.7034,4216.4,4216.3,0.2569]
[1754837183477,1.88896,4217.0,4215.9,0.99493]
[1754837183681,0.47429,4216.4,4216.1,0.47432]
[1754837183880,0.7034,4216.3,4216.1,0.411]
[1754837184080,1.03264,4216.9,4216.5,0.47427]
[1754837184281,0.4231,4216.8,4216.7,0.47425]
[1754837184480,0.4231,4216.8,4216.7,0.6679]
[1754837184676,0.4231,4216.8,4216.7,0.9316]
[1754837184984,0.4231,4216.8,4216.5,0.47427]
[1754837184985,0.7034,4216.8,4216.5,0.47427]
[1754837185180,0.7034,4216.7,4216.6,0.411]
[1754837185381,0.7034,4216.7,4216.6,0.6679]
[1754837185586,2.44140816,4217.8,4216.4,0.47428]
[1754837185587,0.7034,4216.5,4216.4,0.47428]
[1754837186080,0.2803,4216.5,4216.3,0.47429]
[1754837186285,0.47428,4216.5,4216.2,0.4743]
[1754837186482,1.18557,4217.0,4215.9,0.2637]
[1754837186483,0.47424,4216.8,4216.4,0.47428]
[1754837186684,0.7034,4216.7,4216.6,0.88526]
[1754837186984,0.7034,4216.6,4216.5,0.47427]
[1754837187186,0.47423,4217.0,4216.6,0.47425]
[1754837187490,0.5584,4216.8,4216.7,0.9316]
[1754837187683,0.47417,4217.5,4216.7,0.9316]
[1754837187882,0.2803,4217.2,4217.0,0.2637]
[1754837188188,0.2781,4217.7,4217.5,0.47415]
[1754837188387,0.4253,4218.3,4217.8,0.47412]
[1754837188687,0.1858762,4218.7,4218.3,0.47407]
[1754837188688,0.4661762,4218.7,4218.3,0.47407]
[1754837188883,0.145,4218.7,4218.4,0.58880471]
[1754837189081,0.2803,4218.6,4218.5,1.25670471]
[1754837189283,0.7034,4218.7,4218.5,1.25670471]
[1754837189483,0.7034,4218.8,4218.6,0.32510471]
[1754837189686,0.7034,4218.8,4218.7,0.32510471]
[1754837190478,0.2803,4218.8,4218.7,1.25670471]
[1754837190684,0.2803,4218.9,4218.8,0.9316]
[1754837190882,0.145,4219.2,4218.8,1.73071471]
[1754837191081,0.145,4219.2,4218.9,0.32510471]
[1754837191082,0.47397,4219.2,4218.9,0.32510471]
[1754837191380,0.47399,4219.0,4218.4,0.47406]
[1754837191582,0.47402,4218.8,4218.5,0.32543594]
[1754837191786,0.7034,4218.7,4218.6,0.32543594]
[1754837191984,0.7034,4218.7,4218.6,1.25703594]
[1754837192186,0.5584,4218.7,4218.6,1.25703594]
[1754837192391,0.7034,4218.7,4218.6,0.32543594]
[1754837193283,0.47411,4218.1,4217.6,1.14205]
[1754837193487,0.7034,4217.8,4217.7,0.411]
[1754837194085,0.47414,4217.7,4217.2,0.411]
[1754837194292,0.4742,4217.2,4216.6,0.47426]
[1754837194491,0.7034,4217.1,4216.8,0.9316]
[1754837194789,0.145,4217.0,4216.9,0.411]
[1754837194994,0.145,4217.9,4217.6,0.9316]
[1754837195193,0.145,4217.9,4216.5,1.18567]
[1754837195194,0.145,4218.3,4217.7,0.9316]
[1754837195393,2.9787538,4218.8,4217.3,0.2611]
[1754837195394,0.4179,4217.6,4217.3,0.2611]
[1754837195590,0.6723,4217.2,4217.1,0.4177]
[1754837195892,2.44132816,4218.1,4215.9,1.18584]
[1754837195893,0.47418,4217.4,4215.9,1.18584]
[1754837196195,0.1449,4217.8,4216.5,1.18569]
[1754837196389,0.47416,4217.6,4217.1,0.4742]
[1754837196683,0.47408,4218.2,4217.8,0.47413]
[1754837196887,0.3993,4218.7,4218.2,0.4177]
[1754837197087,0.6723,4218.7,4218.4,0.47406]
[1754837197291,0.47401,4218.9,4218.6,0.47404]
[1754837197496,1.14629,4219.1,4218.8,0.9391]
[1754837197795,0.72835,4219.4,4218.0,1.18526]
[1754837198093,0.72835,4219.4,4219.3,0.9391]
[1754837198094,0.5274,4219.4,4219.3,0.9391]
[1754837198885,0.47405,4218.6,4218.3,0.2611]
[1754837199090,0.5274,4218.3,4218.2,0.4177]
[1754837199295,0.6723,4218.6,4218.1,0.9391]
[1754837199488,1.14635,4218.6,4218.2,0.9391]
[1754837199687,0.47411,4218.1,4217.8,0.6788]
[1754837199896,0.6723,4217.9,4217.8,0.6788]
[1754837200097,0.6723,4217.9,4217.8,0.4177]
[1754837200292,0.47413,4217.8,4217.5,0.2603]
[1754837200498,0.6723,4218.1,4217.2,0.4177]
[1754837200699,0.47418,4217.3,4217.2,0.4177]
[1754837200897,0.47418,4217.3,4217.2,0.9391]
[1754837201098,0.47418,4217.4,4217.0,0.47422]
[1754837201294,0.47418,4217.4,4217.3,0.9391]
[1754837201799,1.00158,4217.4,4217.3,0.9391]
[1754837202094,0.6723,4217.3,4216.9,0.47423]
[1754837202294,0.47418,4217.4,4217.1,0.4742]
[1754837202596,0.47418,4217.4,4217.1,0.9391]
[1754837202799,0.4742,4217.2,4216.8,0.47424]
[1754837202996,0.74717,4217.4,4217.0,0.47422]
[1754837203197,0.4742,4217.2,4216.9,0.47423]
[1754837203398,0.47418,4217.4,4217.1,1.15301]
[1754837203601,0.273,4217.3,4217.2,0.678]
[1754837203798,0.273,4217.3,4217.2,0.9391]
[1754837204292,0.6723,4217.3,4217.2,0.9391]
[1754837204694,0.273,4217.3,4217.2,0.9391]
[1754837204998,0.273,4217.3,4216.9,0.47423]
[1754837204999,0.47419,4217.3,4216.9,0.9391]
[1754837205500,0.47419,4217.3,4216.8,0.47424]
[1754837205887,0.47419,4217.3,4217.1,0.678]
[1754837206092,0.47419,4217.3,4217.2,0.9391]
[1754837206492,0.273,4217.5,4217.3,0.2603]
[1754837206688,0.47415,4217.6,4217.4,0.2611]
[1754837206891,0.47417,4217.5,4217.1,0.4742]
[1754837207093,0.273,4218.0,4217.4,0.4177]
[1754837207295,0.2544,4218.2,4215.9,23.80786495]
[1754837207496,0.47409,4218.1,4218.0,0.9391]
[1754837207689,0.5274,4218.6,4218.0,0.9391]
[1754837207890,0.47408,4218.2,4217.9,0.47412]
[1754837208099,0.47406,4218.5,4218.3,0.9391]
[1754837208294,0.47406,4218.5,4218.4,0.9391]
[1754837209192,1.00149,4218.2,4218.1,0.9391]
[1754837209501,0.47408,4218.3,4218.1,0.47409]
[1754837209702,0.47408,4218.3,4218.2,0.9391]